fUSD/lending_fUSD_20260106
["ID","MTS","AMOUNT","RATE_DAILY","PERIOD"]
[400596170,1767737454764,-161.92795047,0.00043479,30]
[400596171,1767737454773,-161.92795047,0.00043479,30]
[400596172,1767737454783,-466.43,0.00043479,30]
[400596173,1767737454793,-466.43,0.00043479,30]
[400596174,1767737454803,-466.43,0.00043479,30]
[400596175,1767737454812,-466.43,0.00043479,30]
[400596176,1767737454821,-466.43,0.00043479,30]
[400596177,1767737454831,-466.43,0.00043479,30]
[400596178,1767737454840,-466.43,0.00043479,30]
[400596179,1767737454850,-466.43,0.00043479,30]
[400596180,1767737454859,-466.43,0.00043479,30]
[400596181,1767737454868,-466.43,0.00043479,30]
[400596182,1767737454877,-466.43,0.00043479,30]
[400596183,1767737454886,-466.43,0.00043479,30]
[400596184,1767737454895,-466.43,0.00043479,30]
[400596185,1767737454905,-466.43,0.00043479,30]
[400596186,1767737454915,-466.43,0.00043479,30]
[400596187,1767737454925,-466.43,0.00043479,30]
[400596188,1767737454934,-466.43,0.00043479,30]
[400596189,1767737454944,-466.43,0.00043479,30]
[400596190,1767737454955,-535.77,0.00043479,30]
[400596191,1767737454964,-171.25,0.00043479,30]
[400596192,1767737454974,-466.43,0.00043479,30]
[400596193,1767737454983,-167.48,0.00043479,30]
[400596194,1767737454993,-466.43,0.00043479,30]
[400596195,1767737455002,-466.43,0.00043479,30]
[400596196,1767737455011,-466.43,0.00043479,30]
[400596197,1767737455021,-466.43,0.00043479,30]
[400596198,1767737455030,-482.51,0.00043479,30]
[400596199,1767737455040,-482.51,0.00043479,30]
[400596200,1767737455049,-482.51,0.00043479,30]
[400596201,1767737455059,-308.83,0.00043479,30]
[400596202,1767737455068,-1000.0,0.0004348,120]
[400596203,1767737455078,-500.0,0.0004348,120]
[400596204,1767737455087,-500.0,0.0004348,120]
[400596205,1767737455097,-500.0,0.0004348,45]
[400596206,1767737455107,-500.0,0.0004348,45]
[400596207,1767737455117,-500.0,0.0004348,30]
[400596208,1767737455126,-419.33594592,0.0004348,30]
[400596209,1767737455135,-500.0,0.0004348,30]
[400596210,1767737455144,-500.0,0.0004348,30]
[400596211,1767737455154,-500.0,0.0004348,120]
[400596212,1767737455163,-500.0,0.0004348,120]
[400596213,1767737455173,-336.97016662,0.00043481,7]
[400596214,1767737455182,-500.0,0.00043481,120]
[400596215,1767737455191,-500.0,0.00043481,120]
[400596216,1767737455201,-261.10675148,0.00043481,120]
[400596217,1767737455210,-500.0,0.00043481,30]
[400596218,1767737455220,-500.0,0.00043481,30]
[400596219,1767737455229,-500.0,0.00043481,30]
[400596220,1767737455239,-500.0,0.00043481,30]
[400596221,1767737455248,-500.0,0.00043481,30]
[400596222,1767737455264,-500.0,0.00043481,30]
[400596223,1767737455274,-500.0,0.00043481,30]
[400596224,1767737455283,-500.0,0.00043481,30]
[400596225,1767737455294,-500.0,0.00043481,30]
[400596226,1767737455305,-219.74812993,0.00043481,30]
[400596227,1767737455316,-500.0,0.00043481,120]
[400596228,1767737455326,-151.0,0.00043484,120]
[400596229,1767737455335,-151.0,0.00043484,120]
[400596230,1767737455345,-1072.23629,0.00043484,120]
[400596231,1767737455355,-151.0,0.00043484,120]
[400596232,1767737455364,-1072.23629,0.00043484,120]
[400596233,1767737455374,-202.661666,0.00043484,120]
[400596234,1767737455385,-1072.23629,0.00043484,120]
[400596235,1767737455394,-1072.23629,0.00043484,120]
[400596236,1767737455404,-1072.23629,0.00043484,120]
[400596237,1767737455413,-1072.23629,0.00043484,120]
[400596238,1767737455423,-1072.23629,0.00043484,120]
[400596239,1767737455432,-1072.23629,0.00043484,120]
[400596240,1767737455441,-230.87744341,0.00043484,120]
[400596241,1767737455450,-1072.23629,0.00043484,120]
[400596242,1767737455459,-1072.23629,0.00043484,120]
[400596243,1767737455467,-1072.23629,0.00043484,120]
[400596244,1767737455476,-1072.23629,0.00043484,120]
[400596245,1767737455485,-1072.23629,0.00043484,120]
[400596246,1767737455494,-1072.23629,0.00043484,120]
[400596247,1767737455503,-1072.23629,0.00043484,120]
[400596248,1767737455512,-1072.23629,0.00043484,120]
[400596249,1767737455522,-1072.23629,0.00043484,120]
[400596250,1767737455532,-1072.23629,0.00043484,120]
[400596251,1767737455542,-1072.23629,0.00043484,120]
[400596252,1767737455552,-1072.236287,0.00043484,120]
[400596253,1767737455561,-1746.920267,0.00043484,120]
[400596254,1767737455571,-1746.920267,0.00043484,120]
[400596255,1767737455580,-1746.920267,0.00043484,120]
[400596256,1767737455590,-1746.920267,0.00043484,120]
[400596257,1767737455599,-1746.920261,0.00043484,120]
[400596258,1767737455609,-151.0,0.00043484,120]
[400596259,1767737455619,-226.011011,0.00043484,120]
[400596260,1767737455628,-176.251751,0.00043484,120]
[400596261,1767737455639,-151.0,0.00043484,120]
[400596262,1767737455648,-151.0,0.00043484,120]
[400596263,1767737455657,-151.0,0.00043484,120]
[400596264,1767737455667,-158.541394,0.00043484,120]
[400596265,1767737455676,-151.0,0.00043484,120]
[400596266,1767737455686,-151.0,0.00043484,120]
[400596267,1767737455695,-151.0,0.00043484,120]
[400596268,1767737455705,-151.0,0.00043484,120]
[400596269,1767737455714,-1218.739951,0.00043484,120]
[400596270,1767737455723,-151.0,0.00043484,120]
[400596271,1767737455733,-1218.739951,0.00043484,120]
[400596272,1767737455742,-151.0,0.00043484,120]
[400596273,1767737455751,-151.0,0.00043484,120]
[400596274,1767737455761,-1218.739951,0.00043484,120]
[400596275,1767737455771,-151.0,0.00043484,120]
[400596276,1767737455780,-151.0,0.00043484,120]
[400596277,1767737455789,-1218.739951,0.00043484,120]
[400596278,1767737455799,-151.0,0.00043484,120]
[400596279,1767737455808,-151.0,0.00043484,120]
[400596280,1767737455817,-1218.739951,0.00043484,120]
[400596281,1767737455826,-151.0,0.00043484,120]
[400596282,1767737455835,-1218.739951,0.00043484,120]
[400596283,1767737455844,-151.0,0.00043484,120]
[400596284,1767737455855,-1218.739951,0.00043484,120]
[400596285,1767737455866,-151.0,0.00043484,120]
[400596286,1767737455875,-1218.739951,0.00043484,120]
[400596287,1767737455884,-151.0,0.00043484,120]
[400596288,1767737455893,-1218.739951,0.00043484,120]
[400596289,1767737455903,-151.0,0.00043484,120]
[400596290,1767737455913,-1218.739951,0.00043484,120]
[400596291,1767737455923,-151.0,0.00043484,120]
[400596292,1767737455932,-1218.739951,0.00043484,120]
[400596293,1767737455942,-151.0,0.00043484,120]
[400596294,1767737455951,-1218.739951,0.00043484,120]
[400596295,1767737455960,-151.0,0.00043484,120]
[400596296,1767737455970,-435.966667,0.00043484,120]
[400596297,1767737455979,-1218.739951,0.00043484,120]
[400596298,1767737455988,-151.0,0.00043484,120]
[400596299,1767737456123,-435.966667,0.00043484,120]
[400596300,1767737456132,-1218.739951,0.00043484,120]
[400596301,1767737456142,-151.0,0.00043484,120]
[400596302,1767737456151,-435.966667,0.00043484,120]
[400596303,1767737456161,-420.17583701,0.00043484,120]
[400596304,1767737456599,-417.89133502,0.00043484,120]
[400596305,1767737456611,-380.67277897,0.00043484,120]
[400596306,1767737456620,-162.638011,0.00043484,120]
[400596307,1767737456631,-435.966667,0.00043484,120]
[400596308,1767737456641,-64.07254303,0.00043484,120]
[400596309,1767737456696,-1154.66740797,0.00043484,120]
[400596310,1767737456705,-435.966667,0.00043484,120]
[400596311,1767737456715,-450.39362384,0.00043484,120]
[400596312,1767737456727,-768.34632716,0.00043484,120]
[400596313,1767737456737,-435.966667,0.00043484,120]
[400596314,1767737456746,-1218.739951,0.00043484,120]
[400596315,1767737456755,-435.966667,0.00043484,120]
[400596316,1767737456765,-1218.739951,0.00043484,120]
[400596317,1767737456774,-435.966667,0.00043484,120]
[400596318,1767737456783,-577.15970655,0.00043484,120]
[400596319,1767737456818,-641.58024745,0.00043484,120]
[400596320,1767737456828,-435.966667,0.00043484,120]
[400596321,1767737456837,-435.966667,0.00043484,120]
[400596322,1767737456847,-435.966667,0.00043484,120]
[400596323,1767737456856,-435.966667,0.00043484,120]
[400596324,1767737456866,-435.966667,0.00043484,120]
[400596325,1767737456875,-435.966667,0.00043484,120]
[400596326,1767737456884,-435.966667,0.00043484,120]
[400596327,1767737456895,-435.966667,0.00043484,120]
[400596328,1767737456906,-435.966667,0.00043484,120]
[400596329,1767737456916,-151.0,0.00043484,120]
[400596330,1767737456929,-435.966667,0.00043484,120]
[400596331,1767737456939,-435.966667,0.00043484,120]
[400596332,1767737456949,-435.966664,0.00043484,120]
[400596333,1767737456960,-544.168963,0.00043484,120]
[400596334,1767737456970,-544.168963,0.00043484,120]
[400596335,1767737456981,-544.168963,0.00043484,120]
[400596336,1767737456993,-544.168963,0.00043484,120]
[400596337,1767737457003,-544.168963,0.00043484,120]
[400596338,1767737457013,-544.168963,0.00043484,120]
[400596339,1767737457023,-544.168963,0.00043484,120]
[400596340,1767737457034,-544.168963,0.00043484,120]
[400596341,1767737457045,-544.168963,0.00043484,120]
[400596342,1767737457055,-544.168963,0.00043484,120]
[400596343,1767737457065,-544.168963,0.00043484,120]
[400596344,1767737457075,-544.168963,0.00043484,120]
[400596345,1767737457084,-544.168963,0.00043484,120]
[400596346,1767737457094,-544.168963,0.00043484,120]
[400596347,1767737457103,-544.168963,0.00043484,120]
[400596348,1767737457113,-544.168963,0.00043484,120]
[400596349,1767737457122,-544.168963,0.00043484,120]
[400596350,1767737457132,-544.168963,0.00043484,120]
[400596351,1767737457141,-544.168963,0.00043484,120]
[400596352,1767737457151,-544.168954,0.00043484,120]
[400596353,1767737457309,-151.0,0.00043484,120]
[400596354,1767737457319,-154.15747,0.00043484,120]
[400596355,1767737457329,-559.127529,0.00043484,120]
[400596356,1767737457338,-559.127529,0.00043484,120]
[400596357,1767737457350,-559.127529,0.00043484,120]
[400596358,1767737457359,-559.127529,0.00043484,120]
[400596359,1767737457369,-559.127529,0.00043484,120]
[400596360,1767737457380,-559.127529,0.00043484,120]
[400596361,1767737457390,-559.127529,0.00043484,120]
[400596362,1767737457399,-559.127529,0.00043484,120]
[400596363,1767737457409,-559.127529,0.00043484,120]
[400596364,1767737457419,-559.127529,0.00043484,120]
[400596365,1767737457431,-559.127529,0.00043484,120]
[400596366,1767737457441,-559.127529,0.00043484,120]
[400596367,1767737457450,-559.127529,0.00043484,120]
[400596368,1767737457460,-559.127529,0.00043484,120]
[400596369,1767737457470,-559.127529,0.00043484,120]
[400596370,1767737457482,-559.127529,0.00043484,120]
[400596371,1767737457492,-559.127529,0.00043484,120]
[400596372,1767737457501,-559.127529,0.00043484,120]
[400596373,1767737457511,-559.127529,0.00043484,120]
[400596374,1767737457520,-559.127529,0.00043484,120]
[400596375,1767737457530,-515.531297,0.00043484,120]
[400596376,1767737457539,-515.531297,0.00043484,120]
[400596377,1767737457550,-515.531297,0.00043484,120]
[400596378,1767737457560,-515.531297,0.00043484,120]
[400596379,1767737457569,-515.531297,0.00043484,120]
[400596380,1767737457579,-515.531297,0.00043484,120]
[400596381,1767737457588,-515.531297,0.00043484,120]
[400596382,1767737457598,-515.531297,0.00043484,120]
[400596383,1767737457607,-515.531297,0.00043484,120]
[400596384,1767737457617,-515.531297,0.00043484,120]
[400596385,1767737457627,-515.531297,0.00043484,120]
[400596386,1767737457636,-515.531297,0.00043484,120]
[400596387,1767737457646,-515.531297,0.00043484,120]
[400596388,1767737457655,-515.531297,0.00043484,120]
[400596389,1767737457665,-515.531297,0.00043484,120]
[400596390,1767737457675,-515.531297,0.00043484,120]
[400596391,1767737457684,-515.531297,0.00043484,120]
[400596392,1767737457694,-515.531297,0.00043484,120]
[400596393,1767737457703,-515.531297,0.00043484,120]
[400596394,1767737457713,-515.53129585,0.00043484,120]
[400596395,1767737457723,-151.0,0.00043484,30]
[400596396,1767737457733,-151.0,0.00043484,30]
[400596397,1767737457742,-151.0,0.00043484,30]
[400596398,1767737457752,-151.0,0.00043484,30]
[400596399,1767737457761,-781.193148,0.00043484,45]
[400596400,1767737457771,-781.193148,0.00043484,45]
[400596401,1767737457780,-781.193148,0.00043484,45]
[400596402,1767737457790,-781.193148,0.00043484,45]
[400596403,1767737457800,-781.193148,0.00043484,45]
[400596404,1767737457809,-781.193148,0.00043484,45]
[400596405,1767737457819,-781.193148,0.00043484,45]
[400596406,1767737457829,-781.193148,0.00043484,45]
[400596407,1767737457839,-781.193148,0.00043484,45]
[400596408,1767737457848,-781.193148,0.00043484,45]
[400596409,1767737457858,-781.193148,0.00043484,45]
[400596410,1767737457867,-781.193148,0.00043484,45]
[400596411,1767737457876,-781.193148,0.00043484,45]
[400596412,1767737457886,-781.193148,0.00043484,45]
[400596413,1767737457895,-781.193148,0.00043484,45]
[400596414,1767737457905,-781.193148,0.00043484,45]
[400596415,1767737457915,-781.193148,0.00043484,45]
[400596416,1767737457924,-781.193148,0.00043484,45]
[400596417,1767737457933,-781.193148,0.00043484,45]
[400596418,1767737457943,-781.193153,0.00043484,45]
[400596419,1767737457952,-185.220441,0.00043484,120]
[400596420,1767737457962,-460.906222,0.00043484,120]
[400596421,1767737457971,-460.906222,0.00043484,120]
[400596422,1767737457980,-460.906222,0.00043484,120]
[400596423,1767737457989,-460.906222,0.00043484,120]
[400596424,1767737457998,-460.906222,0.00043484,120]
[400596425,1767737458008,-460.906222,0.00043484,120]
[400596426,1767737458017,-460.906222,0.00043484,120]
[400596427,1767737458026,-504.480431,0.00043484,120]
[400596428,1767737458036,-460.906222,0.00043484,120]
[400596429,1767737458046,-504.480431,0.00043484,120]
[400596430,1767737458056,-460.906222,0.00043484,120]
[400596431,1767737458065,-504.480431,0.00043484,120]
[400596432,1767737458075,-460.906222,0.00043484,120]
[400596433,1767737458084,-504.480431,0.00043484,120]
[400596434,1767737458094,-460.906222,0.00043484,120]
[400596435,1767737458108,-504.480431,0.00043484,120]
[400596436,1767737458117,-504.480431,0.00043484,120]
[400596437,1767737458127,-460.906222,0.00043484,120]
[400596438,1767737458137,-504.480431,0.00043484,120]
[400596439,1767737458147,-460.906222,0.00043484,120]
[400596440,1767737458156,-504.480431,0.00043484,120]
[400596441,1767737458166,-460.906222,0.00043484,120]
[400596442,1767737458191,-504.480431,0.00043484,120]
[400596443,1767737458207,-7.71419483,0.00043484,120]
[400596444,1767737458410,-453.19202717,0.00043484,120]
[400596445,1767737458423,-504.480431,0.00043484,120]
[400596446,1767737458445,-504.480431,0.00043484,120]
[400596447,1767737458459,-131.6125123,0.00043484,120]
[400596448,1767737460213,-500.0,0.00018505,2]
[400596449,1767737460223,-803.2807075,0.00018505,2]
[400596450,1767737460233,-803.2807075,0.00018505,2]
[400596451,1767737460243,-803.2807075,0.00018505,2]
[400596452,1767737460252,-803.2807075,0.00018505,2]
[400596453,1767737460262,-803.2807075,0.00018505,2]
[400596454,1767737460271,-803.2807075,0.00018505,2]
[400596455,1767737460281,-803.2807075,0.00018505,2]
[400596456,1767737460291,-803.2807075,0.00018505,2]
[400596457,1767737460308,-594.31143604,0.000419,120]
[400596458,1767737460319,-329.2937097,0.00043484,120]
[400596459,1767737460329,-504.480431,0.00043484,120]
[400596460,1767737460339,-460.906222,0.00043484,120]
[400596461,1767737460350,-504.480431,0.00043484,120]
[400596462,1767737460360,-460.906222,0.00043484,120]
[400596463,1767737460369,-504.480431,0.00043484,120]
[400596464,1767737460379,-460.906222,0.00043484,120]
[400596465,1767737460389,-504.480431,0.00043484,120]
[400596466,1767737460399,-504.480431,0.00043484,120]
[400596467,1767737460408,-460.90623,0.00043484,120]
[400596468,1767737460418,-504.480431,0.00043484,120]
[400596469,1767737460427,-504.480431,0.00043484,120]
[400596470,1767737460437,-504.480431,0.00043484,120]
[400596471,1767737460447,-504.480424,0.00043484,120]
[400596472,1767737460457,-168.55207,0.00043484,120]
[400596473,1767737460466,-151.0,0.00043484,120]
[400596474,1767737460476,-151.0,0.00043484,120]
[400596475,1767737460485,-151.0,0.00043484,120]
[400596476,1767737460494,-235.896825,0.00043484,120]
[400596477,1767737460503,-151.0,0.00043484,120]
[400596478,1767737460513,-151.0,0.00043484,120]
[400596479,1767737460522,-178.435728,0.00043484,120]
[400596480,1767737460532,-151.0,0.00043484,120]
[400596481,1767737460541,-151.0,0.00043484,120]
[400596482,1767737460551,-151.0,0.00043484,120]
[400596483,1767737460561,-151.0,0.00043484,120]
[400596484,1767737460570,-151.0,0.00043484,120]
[400596485,1767737460579,-151.0,0.00043484,120]
[400596486,1767737460588,-151.0,0.00043484,120]
[400596487,1767737460598,-151.0,0.00043484,120]
[400596488,1767737460607,-151.0,0.00043484,120]
[400596489,1767737460616,-151.0,0.00043484,120]
[400596490,1767737460625,-151.0,0.00043484,120]
[400596491,1767737460635,-151.0,0.00043484,120]
[400596492,1767737460644,-151.0,0.00043484,120]
[400596493,1767737460653,-151.0,0.00043484,120]
[400596494,1767737460663,-257.086558,0.00043484,120]
[400596495,1767737460673,-776.255543,0.00043484,120]
[400596496,1767737460682,-776.255543,0.00043484,120]
[400596497,1767737460692,-776.255543,0.00043484,120]
[400596498,1767737460702,-776.255543,0.00043484,120]
[400596499,1767737460711,-776.255543,0.00043484,120]
[400596500,1767737460721,-776.255543,0.00043484,120]
[400596501,1767737460730,-776.255543,0.00043484,120]
[400596502,1767737460740,-776.255543,0.00043484,120]
[400596503,1767737460749,-776.255543,0.00043484,120]
[400596504,1767737460759,-776.255543,0.00043484,120]
[400596505,1767737460768,-776.255543,0.00043484,120]
[400596506,1767737460777,-776.255543,0.00043484,120]
[400596507,1767737460788,-776.255543,0.00043484,120]
[400596508,1767737460799,-776.255543,0.00043484,120]
[400596509,1767737460809,-776.255543,0.00043484,120]
[400596510,1767737460819,-776.255543,0.00043484,120]
[400596511,1767737460829,-776.255543,0.00043484,120]
[400596512,1767737460838,-776.255543,0.00043484,120]
[400596513,1767737460847,-776.255543,0.00043484,120]
[400596514,1767737460856,-776.255541,0.00043484,120]
[400596515,1767737460865,-844.998277,0.00043484,120]
[400596516,1767737460874,-844.998277,0.00043484,120]
[400596517,1767737460883,-844.998277,0.00043484,120]
[400596518,1767737460892,-844.998277,0.00043484,120]
[400596519,1767737460902,-844.998277,0.00043484,120]
[400596520,1767737460912,-844.998277,0.00043484,120]
[400596521,1767737460921,-844.998277,0.00043484,120]
[400596522,1767737460931,-844.998277,0.00043484,120]
[400596523,1767737460940,-844.998277,0.00043484,120]
[400596524,1767737460950,-844.998277,0.00043484,120]
[400596525,1767737460959,-844.998277,0.00043484,120]
[400596526,1767737460970,-844.998277,0.00043484,120]
[400596527,1767737460979,-844.998277,0.00043484,120]
[400596528,1767737460988,-844.998277,0.00043484,120]
[400596529,1767737460998,-844.998277,0.00043484,120]
[400596530,1767737461007,-844.998277,0.00043484,120]
[400596531,1767737461017,-844.998277,0.00043484,120]
[400596532,1767737461026,-844.998277,0.00043484,120]
[400596533,1767737461036,-844.998277,0.00043484,120]
[400596534,1767737461046,-844.998277,0.00043484,120]
[400596535,1767737461055,-1000.0,0.00043487,120]
[400596536,1767737461065,-310.07884292,0.00043487,60]
[400596537,1767737461074,-151.0,0.00043487,120]
[400596538,1767737461083,-151.0,0.00043487,120]
[400596539,1767737461092,-151.0,0.00043487,120]
[400596540,1767737461102,-151.0,0.00043487,120]
[400596541,1767737461111,-151.0,0.00043487,120]
[400596542,1767737461120,-151.0,0.00043487,120]
[400596543,1767737461130,-265.95046,0.00043487,120]
[400596544,1767737461139,-13420.43131996,0.00043487,2]
[400596545,1767737461152,-93.95904152,0.00043487,2]
[400596546,1767737461161,-15291.37127297,0.00043487,4]
[400596547,1767737461171,-151.0,0.00043488,120]
[400596548,1767737461180,-1000.0,0.00043488,2]
[400596549,1767737461189,-1000.0,0.00043488,2]
[400596550,1767737461199,-1000.0,0.00043488,2]
[400596551,1767737461209,-1000.0,0.00043488,2]
[400596552,1767737461218,-1000.0,0.00043488,2]
[400596553,1767737461227,-1000.0,0.00043488,2]
[400596554,1767737461236,-1000.0,0.00043488,2]
[400596555,1767737461245,-1000.0,0.00043488,2]
[400596556,1767737461254,-1000.0,0.00043488,2]
[400596557,1767737461263,-1000.0,0.00043488,2]
[400596558,1767737461272,-774.272,0.00043488,2]
[400596559,1767737461282,-150.0,0.00043488,2]
[400596560,1767737461291,-1012.34745464,0.00043488,2]
[400596561,1767737461305,-150.0,0.00043488,2]
[400596562,1767737461317,-1318.60083324,0.00043488,2]
[400596563,1767737461326,-1000.0,0.00043488,2]
[400596564,1767737461335,-1000.0,0.00043488,2]
[400596565,1767737461344,-1000.0,0.00043488,2]
[400596566,1767737461354,-1000.0,0.00043488,2]
[400596567,1767737461363,-1000.0,0.00043488,2]
[400596568,1767737461373,-1000.0,0.00043488,2]
[400596569,1767737461383,-790.15796622,0.00043488,2]
[400596570,1767737461392,-684.0,0.00043488,120]
[400596571,1767737461401,-3259.82268,0.00043488,120]
[400596572,1767737461411,-3259.82268,0.00043488,120]
[400596573,1767737461420,-3259.82267,0.00043488,120]
[400596574,1767737461430,-3259.82267,0.00043488,120]
[400596575,1767737461439,-3259.82268,0.00043488,120]
[400596576,1767737461448,-181.05054812,0.00043491,31]
[400596577,1767737461457,-33083.84709644,0.00043491,30]
[400596578,1767737461468,-7028.84508125,0.00043491,30]
[400596579,1767737461479,-17845.8268315,0.00043491,30]
[400596580,1767737461490,-1518.12334425,0.00043491,30]
[400596581,1767737461501,-1003.32959622,0.00043491,30]
[400596582,1767737461593,-90138.42393929,0.00043491,30]
[400596583,1767737461605,-915.48102366,0.00043491,30]
[400596584,1767737461615,-259.89045008,0.00043491,30]
[400596585,1767737461684,-60946.93440316,0.00043491,30]
[400596586,1767737461696,-3689.52,0.00043491,30]
[400596587,1767737461706,-265.96,0.00043491,30]
[400596588,1767737461721,-942.12471793,0.00043491,30]
[400596589,1767737461732,-53418.20330436,0.00043491,30]
[400596590,1767737461741,-2945432.03070457,0.00043491,7]
[400596591,1767737461979,-1875778.76844216,0.00043491,7]
[400596592,1767737462070,-435.88463301,0.00043491,7]
[400596593,1767737462082,-354.53810429,0.00043491,7]
[400596594,1767737462094,-298.51436949,0.00043491,7]
[400596595,1767737462105,-954.72283817,0.00043491,7]
[400596596,1767737462116,-6035.95388972,0.00043491,7]
[400596597,1767737463520,-565.0,0.00030902,2]
[400596598,1767737463530,-429.1644261,0.00035516,2]
[400596599,1767737463539,-429.16442607,0.00037091,2]
[400596600,1767737463550,-429.16442607,0.00038666,2]
[400596601,1767737463560,-429.16442607,0.00040241,2]
[400596602,1767737463569,-429.16442607,0.00041816,2]
[400596603,1767737463578,-261.22863142,0.00043389,2]
[400596604,1767737463587,-429.16442607,0.00043391,2]
[400596605,1767737463597,-524808.96721972,0.00043491,7]
[400596606,1767737463608,-2731.44,0.00043491,7]
[400596607,1767737463623,-1672.86111214,0.00043491,7]
[400596608,1767737463633,-1081.27223702,0.00043491,7]
[400596609,1767737463644,-2160.70713976,0.00043491,7]
[400596610,1767737464266,-389.77211344,0.00041562,30]
[400596611,1767737464278,-271.40788656,0.00041562,30]
[400596612,1767737464287,-590.1441184,0.000419,120]
[400596613,1767737464413,-4.16731764,0.000419,120]
[400596614,1767737464422,-466.43,0.00042329,30]
[400596615,1767737464432,-62.75332081,0.00042521,30]
[400596616,1767737464609,-419.75667919,0.00042521,30]
[400596617,1767737464618,-171.25,0.00042658,30]
[400596618,1767737464629,-26434.23177278,0.00043491,7]
[400596619,1767737464641,-490.520002,0.00043491,7]
[400596620,1767737464652,-341.32290013,0.00043491,7]
[400596621,1767737464664,-8034.96227502,0.00043491,7]
[400596622,1767737464674,-6403.69871666,0.00043491,7]
[400596623,1767737464686,-521.11876182,0.00043491,7]
[400596624,1767737464702,-684.39999965,0.00043491,7]
[400596625,1767737464712,-515768.80029599,0.00043491,7]
[400596626,1767737464723,-5065.50956673,0.00043491,7]
[400596627,1767737464817,-33903.07320963,0.00043491,7]
[400596628,1767737629301,-914.96897657,0.00017568,2]
[400596629,1767737629325,-300.0,0.00017667,2]
[400596630,1767737629352,-998785.03102343,0.00017668,2]
[400596631,1767737633467,-1214.96897657,0.00017668,2]
[400596632,1767737633491,-279.0,0.00017668,2]
[400596633,1767737633513,-352.0,0.00017812,2]
[400596634,1767737633536,-500.0,0.00017973,2]
[400596635,1767737633560,-500.0,0.00017973,2]
[400596636,1767737633584,-500.0,0.00017973,2]
[400596637,1767737633608,-500.0,0.00017973,2]
[400596638,1767737633630,-472.18937407,0.00017973,2]
[400596639,1767737633653,-500.0,0.00017973,2]
[400596640,1767737674953,-328.39570891,0.00017893,2]
[400596642,1767737830077,1000.0,0.0003287,120]
[400596643,1767737834919,1000.0,0.0003287,120]
[400596644,1767737844643,546.0,0.0003287,120]
[400596645,1767737863113,580.31842491,0.00032441,120]
[400596658,1767738193627,1073.0,0.00032,120]
[400596659,1767738303566,500.0,0.00017973,2]
[400596660,1767738308408,3499171.60429109,0.00018,2]
[400596665,1767738371019,-300.0,0.00017639,2]
[400596666,1767738371044,-1120.99465976,0.0001764,2]
[400596667,1767738371070,-1109.49938377,0.0001764,2]
[400596668,1767738371096,-1363.03330474,0.0001764,2]
[400596669,1767738371122,-500.0,0.00017973,2]
[400596670,1767738371154,-295606.47265173,0.00018,2]
[400596672,1767738483259,687.60103649,0.000315,120]
[400596675,1767738502836,1085.62458723,5e-05,120]
[400596676,1767738504667,949.85360435,0.00032,120]
[400596677,1767738505699,450.04525315,0.000246,120]
[400596679,1767738519929,155.91661298,0.000302,120]
[400596687,1767738632144,-300.0,0.00017639,2]
[400596688,1767738632154,-300.0,0.00017639,2]
[400596689,1767738632164,-1200.0,0.00017639,2]
[400596690,1767738632173,-300.0,0.00017639,2]
[400596692,1767738632182,-250.0,0.0001764,2]
[400596693,1767738632192,-345.82898383,0.0001764,2]
[400596698,1767738632228,-324.98920754,0.0001764,2]
[400596700,1767738632240,-1666.38559648,0.0001764,2]
[400596702,1767738632250,-176.43590763,0.0001764,2]
[400596709,1767738632309,-564.489387,0.0001764,2]
[400596713,1767738632333,-450.66319393,0.0001764,2]